fUSD/lending_fUSD_20260224
["ID","MTS","AMOUNT","RATE_DAILY","PERIOD"]
[406523259,1771907447733,-1000.0,0.00014247,2]
[406523260,1771907447744,-307.44,0.00014324,2]
[406523261,1771907447754,-10357.55636516,0.0001439,2]
[406523262,1771907447765,-250.0,0.00014416,2]
[406523263,1771907447775,-5788.0,0.00014464,2]
[406523264,1771907447788,-30963.85598094,0.00014473,2]
[406523265,1771907447802,-150.0,0.00014478,2]
[406523266,1771907447814,-27137.8058948,0.00014482,2]
[406523267,1771907447825,-482.62299927,0.00014504,2]
[406523268,1771907447836,-859.80605061,0.00014629,2]
[406523269,1771907447846,-151.0,0.00014634,2]
[406523270,1771907447858,-151.0,0.00014634,2]
[406523271,1771907447870,-151.0,0.00014634,2]
[406523272,1771907447883,-151.0,0.00014634,2]
[406523273,1771907447894,-3127.56060277,0.0001467,2]
[406523274,1771907447905,-521.04212356,0.0001467,2]
[406523275,1771907447915,-1506.35893998,0.0001467,2]
[406523276,1771907447927,-1503.05357398,0.00014795,2]
[406523277,1771907447938,-888.44252469,0.00014795,2]
[406523278,1771907447949,-1500.0,0.00014795,2]
[406523279,1771907447961,-1501.938724,0.00014795,2]
[406523280,1771907447972,-1847.79,0.00014853,2]
[406523281,1771907447982,-482.62299927,0.00014866,2]
[406523282,1771907447994,-176.18400318,0.000149,2]
[406523283,1771907448005,-736.0,0.00014938,2]
[406523284,1771907448017,-307.44,0.00014947,2]
[406523285,1771907448028,-250.0,0.00015,2]
[406523286,1771907448040,-2057.23131483,0.00015,2]
[406523287,1771907448052,-18027.12324089,0.00015,7]
[406523288,1771907448063,-8008.97204016,0.00015,2]
[406523289,1771907448074,-500.0,0.00015067,2]
[406523290,1771907448085,-30963.85598094,0.0001508,2]
[406523291,1771907448096,-27137.8058948,0.00015091,2]
[406523292,1771907448107,-500.0,0.00015119,2]
[406523293,1771907448118,-500.0,0.00015119,2]
[406523294,1771907448129,-516.27,0.00015119,2]
[406523295,1771907448141,-515.0,0.0001512,2]
[406523296,1771907448154,-240439.56128328,0.0001512,2]
[406523297,1771907448164,-1669.37026369,0.00015131,2]
[406523298,1771907448176,-891.61887448,0.00015177,2]
[406523299,1771907448187,-3292.0,0.00015223,2]
[406523300,1771907448198,-482.62299927,0.00015229,2]
[406523301,1771907448210,-1517.64,0.000153,2]
[406523302,1771907448222,-500.0,0.00015312,2]
[406523303,1771907448233,-500.0,0.00015312,2]
[406523304,1771907448244,-2000.0,0.00015342,2]
[406523305,1771907448255,-510.0565306,0.000154,2]
[406523306,1771907448268,-160.0,0.00015455,2]
[406523307,1771907448280,-173.87087054,0.00015455,2]
[406523308,1771907448291,-154.12,0.00015538,2]
[406523309,1771907448302,-307.44,0.0001557,2]
[406523310,1771907448313,-482.62299927,0.00015592,2]
[406523311,1771907448324,-27137.8058948,0.00015699,2]
[406523312,1771907448335,-924.60877284,0.00015725,2]
[406523313,1771907448346,-521.04212356,0.00015746,2]
[406523314,1771907448357,-2247.75609779,0.00015807,2]
[406523315,1771907448368,-516.27,0.00015815,2]
[406523316,1771907448379,-796.51670996,0.0001589,2]
[406523317,1771907448390,-482.62299927,0.00015954,2]
[406523318,1771907448401,-150.0,0.00016,2]
[406523319,1771907448411,-419.22118993,0.00016,2]
[406523320,1771907448422,-1669.37026369,0.00016054,2]
[406523321,1771907448433,-307.44,0.00016193,2]
[406523322,1771907448444,-5112.49154717,0.000162,5]
[406523323,1771907448454,-958.81929743,0.00016273,2]
[406523324,1771907448465,-27137.8058948,0.00016308,2]
[406523325,1771907448475,-482.62299927,0.00016317,2]
[406523326,1771907448487,-1252.0,0.00016322,2]
[406523327,1771907448499,-200.0,0.0001634,2]
[406523328,1771907448512,-309.0,0.000164,2]
[406523329,1771907448522,-20000.0,0.00016438,2]
[406523330,1771907448534,-431.0,0.000165,2]
[406523331,1771907448546,-607.0,0.000165,2]
[406523332,1771907448556,-990.0,0.000165,2]
[406523333,1771907448567,-155.0,0.00016573,2]
[406523334,1771907448578,-361.85708907,0.000166,2]
[406523335,1771907448590,-482.62299927,0.00016679,2]
[406523336,1771907448601,-4609.0,0.00016745,2]
[406523337,1771907448612,-307.44,0.00016815,2]
[406523338,1771907448622,-994.29561144,0.00016821,2]
[406523339,1771907448632,-6562.937436,0.00016822,7]
[406523340,1771907448643,-521.04212356,0.00016823,2]
[406523341,1771907448654,-27137.8058948,0.00016917,2]
[406523342,1771907448664,-1669.37026369,0.00016977,2]
[406523343,1771907448675,-500.0,0.00016999,2]
[406523344,1771907448685,-500.0,0.00016999,2]
[406523345,1771907448695,-155.12855329,0.00016999,2]
[406523346,1771907448706,-500.0,0.00016999,2]
[406523347,1771907448716,-500.0,0.00016999,2]
[406523348,1771907448727,-594.51155404,0.00016999,2]
[406523349,1771907448738,-516.27,0.00016999,2]
[406523350,1771907448749,-516.27,0.00016999,2]
[406523351,1771907448759,-516.27,0.00016999,2]
[406523352,1771907448770,-516.27,0.00016999,2]
[406523353,1771907448780,-516.27860285,0.00016999,2]
[406523354,1771907448790,-309.11765045,0.00016999,2]
[406523355,1771907448801,-666.0,0.00016999,2]
[406523356,1771907448812,-300.0,0.00017,2]
[406523357,1771907448822,-667450.75945274,0.00017,2]
[406523358,1771907448832,-151.89875951,0.00017,2]
[406523359,1771907448843,-6623.03809716,0.00017029,2]
[406523360,1771907448854,-482.62299927,0.00017042,2]
[406523361,1771907448864,-503.92174178,0.0001712,5]
[406523362,1771907448875,-503.80461619,0.0001712,5]
[406523363,1771907448885,-350.0,0.0001716,2]
[406523364,1771907448896,-350.0,0.00017175,2]
[406523365,1771907448907,-151.0,0.00017204,2]
[406523366,1771907448918,-154.12,0.00017352,2]
[406523367,1771907448928,-483.0,0.00017363,2]
[406523368,1771907448939,-483.0,0.00017365,2]
[406523369,1771907448950,-277.62210797,0.00017369,2]
[406523370,1771907448961,-483.0,0.00017381,2]
[406523371,1771907448971,-482.62299927,0.00017405,2]
[406523372,1771907448982,-483.0,0.00017407,2]
[406523373,1771907448993,-397.15,0.00017501,2]
[406523374,1771907449004,-350.0,0.00017536,2]
[406523375,1771907449015,-483.0,0.00017541,2]
[406523376,1771907449027,-483.0,0.00017609,2]
[406523377,1771907449038,-1347.8924605,0.0001764,2]
[406523378,1771907449048,-483.0,0.0001766,2]
[406523379,1771907449059,-785.08531332,0.000177,2]
[406523380,1771907449070,-200.0,0.000177,6]
[406523381,1771907449080,-403.0,0.000177,5]
[406523382,1771907449090,-150.0,0.00017708,2]
[406523383,1771907449102,-515.0,0.00017715,4]
[406523384,1771907449113,-482.62299927,0.00017767,2]
[406523385,1771907449124,-200.0,0.000178,6]
[406523386,1771907449135,-815.58401786,0.00017807,2]
[406523387,1771907449146,-158.772003,0.00017808,2]
[406523388,1771907449156,-158.772003,0.00017808,2]
[406523389,1771907449167,-158.772003,0.00017808,2]
[406523390,1771907449177,-158.772003,0.00017808,2]
[406523391,1771907449187,-1422.80991174,0.00017808,2]
[406523392,1771907449198,-800.0,0.00017808,2]
[406523393,1771907449209,-350.0,0.00017809,2]
[406523394,1771907449220,-500.0,0.00017829,2]
[406523395,1771907449230,-71345.27893156,0.0001783,2]
[406523396,1771907449241,-28176.36093623,0.0001783,2]
[406523397,1771907449252,-40000.04,0.0001783,2]
[406523398,1771907449262,-10000.01,0.0001783,2]
[406523399,1771907449273,-49000.05,0.0001783,2]
[406523400,1771907449284,-1402.0,0.00017843,2]
[406523401,1771907449294,-1005.12410844,0.0001786,2]
[406523402,1771907449304,-350.0,0.00017873,2]
[406523403,1771907449315,-25000.0,0.00017874,3]
[406523404,1771907449325,-483.0,0.00017876,2]
[406523405,1771907449336,-25000.0,0.00017882,3]
[406523406,1771907449346,-25000.0,0.00017891,3]
[406523407,1771907449358,-25000.0,0.000179,3]
[406523408,1771907449368,-25000.0,0.000179,3]
[406523409,1771907449629,-200.0,0.000179,6]
[406523410,1771907449691,-1669.37026369,0.000179,2]
[406523411,1771907449713,-3127.56060277,0.000179,2]
[406523412,1771907449723,-521.04212356,0.000179,2]
[406523413,1771907449733,-1506.35893998,0.000179,2]
[406523414,1771907449742,-483.0,0.00017903,2]
[406523415,1771907449751,-372.780142,0.00017926,2]
[406523416,1771907449761,-483.0,0.00017927,2]
[406523417,1771907449770,-500.0,0.00017982,2]
[406523418,1771907449781,-175.90711533,0.0001799,2]
[406523419,1771907449790,-11757.9124561,0.00017998,2]
[406523420,1771907449800,-500.0,0.00017999,2]
[406523421,1771907449809,-500.0,0.00017999,2]
[406523422,1771907449818,-301.79248677,0.00017999,2]
[406523423,1771907449828,-3380366.19526555,0.00018,2]
[406523424,1771907450078,-2568.29535069,0.00018,2]
[406523425,1771907450089,-640.70959707,0.00018,2]
[406523426,1771907450101,-1694.7978037,0.00018,2]
[406523427,1771907450150,-500.0,0.00011528,2]
[406523428,1771907450160,-500.0,0.00011802,2]
[406523429,1771907450169,-500.0,0.00012076,2]
[406523430,1771907450178,-500.0,0.0001235,2]
[406523431,1771907450187,-33113.64692898,0.00018,2]
[406523432,1771907450464,-522.40688984,0.00011528,2]
[406523433,1771907450664,-497.84995513,0.00011528,2]
[406523434,1771907450674,-1020.25684497,0.00011528,2]
[406523435,1771907450683,-1020.25684497,0.00011528,2]
[406523436,1771907450697,-1020.25684497,0.00011528,2]
[406523437,1771907450706,-1020.25684497,0.00011528,2]
[406523438,1771907450715,-1020.25684497,0.00011528,2]
[406523439,1771907450725,-1020.25684497,0.00011528,2]
[406523440,1771907450735,-1020.25684497,0.00011528,2]
[406523441,1771907450744,-1020.25684497,0.00011528,2]
[406523442,1771907450754,-1020.25684497,0.00011528,2]
[406523443,1771907450763,-1020.25684497,0.00011528,2]
[406523444,1771907450772,-1020.25684497,0.00011528,2]
[406523445,1771907450781,-1020.25684497,0.00011528,2]
[406523446,1771907450790,-1020.25684497,0.00011528,2]
[406523447,1771907450799,-1020.25684497,0.00011528,2]
[406523448,1771907450808,-1020.25684497,0.00011528,2]
[406523449,1771907450818,-1020.25684497,0.00011528,2]
[406523450,1771907450827,-1020.25684497,0.00011528,2]
[406523451,1771907450836,-1020.25684497,0.00011528,2]
[406523452,1771907450845,-1020.25684497,0.00011528,2]
[406523453,1771907450854,-378.56998044,0.00011528,2]
[406523454,1771907450865,-323.2704,0.00011528,2]
[406523455,1771907450877,-318.41646453,0.00011528,2]
[406523456,1771907450890,-1020.25684497,0.00011528,2]
[406523457,1771907450900,-1020.25684497,0.00011528,2]
[406523458,1771907450910,-53.29984553,0.00011528,2]
[406523459,1771907465049,500.0,0.000107,2]
[406523460,1771907536525,500.0,0.000108,2]
[406523461,1771907536752,500.0,0.000108,2]
[406523462,1771907537008,501.06724534,0.000108,2]
[406523463,1771907537036,500.98925879,0.000108,2]
[406523464,1771907537231,500.0,0.000108,2]
[406523465,1771907537276,500.0,0.000108,2]
[406523466,1771907537742,500.0,0.000108,2]
[406523467,1771907537771,500.0,0.000108,2]
[406523468,1771907537869,497.95349587,0.000108,2]
[406523469,1771907537895,2.04650413,0.000108,2]
[406523470,1771907538219,500.0,0.000108,2]
[406523471,1771907538371,500.0,0.000108,2]
[406523472,1771907538676,500.0,0.000108,2]
[406523473,1771907538832,500.0,0.000108,2]
[406523474,1771907542226,500.0,0.000108,2]
[406523475,1771907542704,653.71723476,0.000108,2]
[406523477,1771907628977,500.0,0.00011428,2]
[406523478,1771907632782,242.37,0.000115,2]
[406523479,1771907717617,550.39,7.5e-05,2]
[406523480,1771907738909,-722.8955016,0.00011518,2]
[406523481,1771907739161,-2113.28369222,0.00011518,2]
[406523482,1771907739247,-359.5702,0.00011518,2]
[406523483,1771907836505,500.0,0.000108,2]
[406523488,1771908109493,500.0,0.00011418,2]
[406523490,1771908220402,242.37,0.000115,2]
[406523494,1771908426367,-1097.25060618,0.00011518,2]
[406523495,1771908426393,-5000.0,0.00011518,2]
[406523496,1771908426666,-300.0,0.00011518,2]
[406523497,1771908426694,-250.0,0.00011518,2]
[406523498,1771908426721,-244.0,0.00011518,2]
[406523499,1771908426748,-300.0,0.00011544,2]
[406523500,1771908426774,-382.72048887,0.00011577,2]
[406523501,1771908426804,-300.0,0.00011589,2]
[406523502,1771908426832,-1200.0,0.0001159,2]
[406523503,1771908426858,-300.0,0.0001159,2]
[406523504,1771908426889,-52.0578099,0.0001159,2]
[406523508,1771908597882,-1147.9421901,0.0001159,2]
[406523509,1771908597909,-300.0,0.0001159,2]
[406523510,1771908597936,-588.88,0.00012,2]
[406523511,1771908597961,-150.0,0.00012,2]
[406523512,1771908597986,-150.0,0.00012,2]
[406523513,1771908614211,157.20650057,0.00012,2]
[406523516,1771908631480,-300.0,0.00012027,2]
[406523517,1771908631490,-300.0,0.00012027,2]
[406523518,1771908631499,-1200.0,0.00012027,2]
[406523519,1771908631507,-248.0,0.00012027,2]
[406523520,1771908631517,-5287.71,0.00012028,2]
[406523521,1771908631526,-1600.0,0.00012214,2]
[406523522,1771908631535,-300.0,0.00012358,2]
[406523523,1771908631544,-6360.62778609,0.00012359,2]
[406523524,1771908631555,-905.49547409,0.00012359,2]
[406523525,1771908631565,-1500.0,0.00012359,2]
[406523526,1771908631590,-688.88204396,0.00012359,2]
[406523527,1771908631601,-11543.75663507,0.00012359,2]
[406523528,1771908631609,-150.0,0.00012401,2]
[406523529,1771908631618,-166.66,0.00012402,2]
[406523530,1771908631627,-150.99,0.00012402,2]
[406523531,1771908631635,-150.99,0.00012402,2]
[406523532,1771908631645,-148274.41471949,0.00012402,2]
[406523534,1771908631655,-2329.28528051,0.00012402,2]
[406523536,1771908631664,-558.46,0.0001246,2]
[406523538,1771908631673,-150.0,0.00012645,2]
[406523540,1771908631682,-4870.51359229,0.00012645,2]
[406523543,1771908637505,-4852.39229244,0.00012645,2]
[406523544,1771908637562,-277.08411527,0.00012645,2]
[406523545,1771908637572,-389.84240528,0.00012645,2]
[406523546,1771908637582,-610.14759472,0.00012645,2]
[406523547,1771908637591,-166.66,0.00012663,2]
[406523548,1771908637600,-773.65765177,0.0001267,2]
[406523602,1771908639866,-4226.34234823,0.0001267,2]
[406523603,1771908639875,-300.0,0.00012749,2]
[406523604,1771908639884,-3211.96659262,0.00012749,2]
[406523605,1771908639894,-1402.0,0.0001289,2]
[406523606,1771908639903,-912.0,0.00012915,2]
[406523607,1771908639912,-166.66,0.00012924,2]
[406523608,1771908639920,-560.0,0.00012941,2]
[406523609,1771908639930,-412.0,0.00012942,2]
[406523610,1771908639938,-449.0,0.00012947,2]
[406523611,1771908639947,-197.0,0.00012968,2]
[406523612,1771908639955,-298.0,0.00012973,2]
[406523613,1771908639964,-20998.76193921,0.00012975,2]
[406523614,1771908639973,-500.0,0.00013073,2]
[406523615,1771908639981,-508.95319751,0.00013073,2]
[406523616,1771908639990,-506.41000984,0.00013073,2]
[406523617,1771908639999,-151.0,0.00013112,2]
[406523618,1771908640007,-151.0,0.00013112,2]
[406523619,1771908640016,-151.0,0.00013112,2]
[406523620,1771908640025,-151.0,0.00013112,2]
[406523621,1771908640033,-151.0,0.00013112,2]
[406523622,1771908640042,-151.0,0.00013112,2]
[406523623,1771908640051,-151.0,0.00013112,2]
[406523624,1771908640062,-151.0,0.00013112,2]
[406523625,1771908640071,-151.0,0.00013112,2]
[406523626,1771908640080,-151.0,0.00013112,2]
[406523627,1771908640089,-151.0,0.00013112,2]
[406523628,1771908640098,-151.0,0.00013112,2]
[406523629,1771908640107,-151.0,0.00013112,2]
[406523630,1771908640115,-151.0,0.00013112,2]
[406523631,1771908640124,-151.0,0.00013112,2]
[406523632,1771908640133,-151.0,0.00013112,2]
[406523633,1771908640142,-151.0,0.00013112,2]
[406523634,1771908640150,-151.0,0.00013112,2]
[406523635,1771908640159,-151.0,0.00013112,2]
[406523636,1771908640167,-151.0,0.00013112,2]
[406523637,1771908640176,-500.0,0.0001312,2]
[406523638,1771908640185,-500.0,0.0001312,2]
[406523639,1771908640194,-500.0,0.0001312,2]
[406523640,1771908640203,-500.0,0.0001312,2]
[406523641,1771908640211,-500.0,0.0001312,2]
[406523642,1771908640220,-596.40260447,0.0001312,2]
[406523643,1771908640229,-500.0,0.0001312,2]
[406523644,1771908640238,-226.07766539,0.0001312,2]
[406523645,1771908640248,-500.0,0.0001312,2]
[406523646,1771908640256,-500.0,0.0001312,2]
[406523647,1771908640265,-173.75497189,0.0001312,2]
[406523648,1771908640274,-500.0,0.0001312,2]
[406523649,1771908640283,-500.0,0.0001312,2]
[406523650,1771908640291,-500.0,0.0001312,2]
[406523651,1771908640300,-502.09765964,0.0001312,2]
[406523652,1771908640308,-500.0,0.0001312,2]
[406523653,1771908640317,-500.0,0.0001312,2]
[406523654,1771908640326,-500.0,0.0001312,2]
[406523655,1771908640335,-500.0,0.0001312,2]
[406523656,1771908640343,-500.0,0.0001312,2]
[406523657,1771908640352,-500.0,0.0001312,2]
[406523658,1771908640361,-500.0,0.0001312,2]
[406523659,1771908640370,-500.0,0.0001312,2]
[406523660,1771908640379,-500.0,0.0001312,2]
[406523661,1771908640387,-500.0,0.0001312,2]
[406523662,1771908640396,-1000.0,0.0001317,2]
[406523663,1771908640405,-166.66,0.00013185,2]
[406523664,1771908640414,-1680.0,0.00013229,2]
[406523665,1771908640423,-332.56813846,0.00013294,2]
[406523666,1771908640431,-18405.12121764,0.00013294,2]
[406523667,1771908640440,-489.47016035,0.00013294,2]
[406523668,1771908640449,-3259.01371535,0.00013294,2]
[406523669,1771908640457,-1806.00301908,0.00013294,2]
[406523670,1771908640466,-194.96234917,0.00013315,2]
[406523671,1771908640475,-194.96234917,0.00013315,2]
[406523672,1771908640484,-500.0,0.00013324,2]
[406523673,1771908640492,-511.10672883,0.00013324,2]
[406523674,1771908640501,-261.02829057,0.00013324,2]
[406523675,1771908640510,-500.0,0.00013324,2]
[406523676,1771908640519,-500.0,0.00013324,2]
[406523677,1771908640529,-500.0,0.00013324,2]
[406523678,1771908640538,-500.0,0.00013324,2]
[406523679,1771908640547,-500.0,0.00013324,2]
[406523680,1771908640556,-500.0,0.00013324,2]
[406523681,1771908640565,-500.0,0.00013324,2]
[406523682,1771908640575,-500.0,0.00013324,2]
[406523683,1771908640583,-449.76526678,0.00013324,2]
[406523684,1771908640592,-500.0,0.00013324,2]
[406523685,1771908640601,-500.0,0.00013324,2]
[406523686,1771908640610,-500.0,0.00013324,2]
[406523687,1771908640618,-500.0,0.00013324,2]
[406523688,1771908640627,-500.0,0.00013324,2]
[406523689,1771908640636,-410.78217221,0.00013324,2]
[406523690,1771908640645,-500.0,0.00013324,2]
[406523691,1771908640654,-167.21188771,0.00013324,2]
[406523692,1771908640663,-155.68973855,0.00013324,2]
[406523693,1771908640672,-500.0,0.00013324,2]
[406523694,1771908640681,-500.0,0.00013324,2]
[406523695,1771908640690,-500.0,0.00013324,2]
[406523696,1771908640699,-500.0,0.00013324,2]
[406523697,1771908640708,-500.0,0.00013324,2]
[406523698,1771908640717,-500.0,0.00013324,2]
[406523699,1771908640726,-500.0,0.00013324,2]
[406523700,1771908640735,-500.0,0.00013324,2]
[406523701,1771908640744,-500.0,0.00013324,2]
[406523702,1771908640753,-500.0,0.00013324,2]
[406523703,1771908640762,-500.0,0.00013324,2]
[406523704,1771908640771,-500.0,0.00013324,2]
[406523705,1771908640780,-500.0,0.00013324,2]
[406523706,1771908640789,-500.0,0.00013324,2]
[406523707,1771908640798,-500.0,0.00013324,2]
[406523708,1771908640807,-500.0,0.00013324,2]
[406523709,1771908640816,-500.0,0.00013324,2]
[406523710,1771908640825,-500.0,0.00013324,2]
[406523711,1771908640834,-500.0,0.00013324,2]
[406523712,1771908640843,-500.0,0.00013324,2]
[406523713,1771908640853,-223.64675054,0.00013324,2]
[406523714,1771908640863,-500.0,0.00013324,2]
[406523715,1771908640871,-500.0,0.00013324,2]
[406523716,1771908640880,-500.0,0.00013324,2]
[406523717,1771908640890,-500.0,0.00013324,2]
[406523718,1771908640899,-500.0,0.00013324,2]
[406523719,1771908640908,-500.0,0.00013324,2]
[406523720,1771908640917,-500.0,0.00013324,2]
[406523721,1771908640928,-500.0,0.00013324,2]
[406523722,1771908640937,-500.0,0.00013324,2]
[406523723,1771908640946,-500.0,0.00013324,2]
[406523724,1771908640955,-500.0,0.00013324,2]
[406523725,1771908640964,-500.0,0.00013324,2]
[406523726,1771908640973,-500.0,0.00013324,2]
[406523727,1771908640982,-500.0,0.00013324,2]
[406523728,1771908640991,-500.0,0.00013324,2]
[406523729,1771908641000,-500.0,0.00013324,2]
[406523730,1771908641009,-500.0,0.00013324,2]
[406523731,1771908641018,-500.0,0.00013324,2]
[406523732,1771908641027,-500.0,0.00013324,2]
[406523733,1771908641036,-500.0,0.00013324,2]
[406523734,1771908641045,-500.0,0.00013324,2]
[406523735,1771908641054,-500.0,0.00013324,2]
[406523736,1771908641063,-500.0,0.00013324,2]
[406523737,1771908641072,-500.0,0.00013324,2]
[406523738,1771908641081,-500.0,0.00013324,2]
[406523739,1771908641090,-212.30913024,0.00013324,2]
[406523740,1771908641099,-775.57377699,0.00013324,2]
[406523741,1771908641107,-775.57377699,0.00013324,2]
[406523742,1771908641116,-775.57377699,0.00013324,2]
[406523743,1771908641124,-775.57377699,0.00013324,2]
[406523744,1771908641133,-775.57377699,0.00013324,2]
[406523745,1771908641142,-775.57377699,0.00013324,2]
[406523746,1771908641151,-775.57377699,0.00013324,2]
[406523747,1771908641160,-775.57377699,0.00013324,2]
[406523748,1771908641169,-775.57377699,0.00013324,2]
[406523749,1771908641178,-775.57377699,0.00013324,2]
[406523750,1771908641186,-775.57377699,0.00013324,2]
[406523751,1771908641195,-775.57377699,0.00013324,2]
[406523752,1771908641207,-775.57377699,0.00013324,2]
[406523753,1771908641216,-775.57377699,0.00013324,2]
[406523754,1771908641224,-775.57377699,0.00013324,2]
[406523755,1771908641233,-775.57377699,0.00013324,2]
[406523756,1771908641242,-775.57377699,0.00013324,2]
[406523757,1771908641251,-775.57377699,0.00013324,2]
[406523758,1771908641259,-775.57377699,0.00013324,2]
[406523759,1771908641268,-775.57377699,0.00013324,2]
[406523760,1771908641277,-775.57377699,0.00013324,2]
[406523761,1771908641286,-775.57377699,0.00013324,2]
[406523762,1771908641295,-775.57377699,0.00013324,2]
[406523763,1771908641303,-775.57377699,0.00013324,2]
[406523764,1771908641312,-775.57377699,0.00013324,2]
[406523765,1771908641321,-775.57377699,0.00013324,2]
[406523766,1771908641330,-775.57377699,0.00013324,2]
[406523767,1771908641338,-775.57377699,0.00013324,2]
[406523768,1771908641347,-775.57377699,0.00013324,2]
[406523769,1771908641356,-775.57377699,0.00013324,2]
[406523770,1771908641365,-860.64823901,0.00013324,2]
[406523771,1771908641373,-860.64823901,0.00013324,2]
[406523772,1771908641382,-860.64823901,0.00013324,2]
[406523773,1771908641391,-860.64823901,0.00013324,2]
[406523774,1771908641399,-860.64823901,0.00013324,2]
[406523775,1771908641408,-860.64823901,0.00013324,2]
[406523776,1771908641417,-860.64823901,0.00013324,2]
[406523777,1771908641426,-860.64823901,0.00013324,2]
[406523778,1771908641434,-860.64823901,0.00013324,2]
[406523779,1771908641443,-3500000.0,0.00013325,2]
[406523780,1771908641452,-500.0,0.00013394,2]
[406523781,1771908641460,-3240.0,0.00013425,2]
[406523782,1771908641470,-166.66,0.00013446,2]
[406523783,1771908641478,-255.0,0.00013492,2]
[406523784,1771908641487,-500.0,0.00013588,2]
[406523785,1771908641496,-639.33265653,0.00013588,2]
[406523786,1771908641505,-743.50770149,0.00013588,2]
[406523787,1771908641515,-20998.76193921,0.0001359,2]
[406523788,1771908641523,-500.0,0.00013621,2]
[406523789,1771908641532,-500.0,0.00013698,2]
[406523790,1771908641541,-500.0,0.00013698,2]
[406523791,1771908641550,-500.0,0.00013698,2]
[406523792,1771908641559,-500.0,0.00013698,2]
[406523793,1771908641567,-500.0,0.00013698,2]
[406523794,1771908641576,-597.62860285,0.00013698,2]
[406523795,1771908641585,-500.0,0.00013698,2]
[406523796,1771908641594,-500.0,0.00013698,2]
[406523797,1771908641603,-500.0,0.00013698,2]
[406523798,1771908641611,-301.79248677,0.00013698,2]
[406523799,1771908641620,-500.0,0.00013698,2]
[406523800,1771908641629,-500.0,0.00013698,2]
[406523801,1771908641806,-500.0,0.00013698,2]
[406523802,1771908641815,-500.0,0.00013698,2]
[406523803,1771908641824,-155.12855329,0.00013698,2]
[406523804,1771908641833,-500.0,0.00013698,2]
[406523805,1771908641845,-500.0,0.00013698,2]
[406523806,1771908641856,-500.0,0.00013698,2]
[406523807,1771908641866,-500.0,0.00013698,2]
[406523808,1771908641875,-594.51155404,0.00013698,2]
[406523809,1771908641884,-302.70589394,0.00013699,2]
[406523810,1771908641894,-169.4350314,0.00013699,2]
[406523811,1771908641903,-500.0,0.00013699,2]
[406523812,1771908641913,-500.0,0.00013699,2]
[406523813,1771908641923,-500.0,0.00013699,2]
[406523814,1771908641931,-462.25622606,0.00013699,2]
[406523815,1771908641940,-500.0,0.00013699,2]
[406523816,1771908641949,-500.0,0.00013699,2]
[406523817,1771908641958,-241.86216209,0.00013699,2]
[406523818,1771908641967,-170.38160206,0.00013699,2]
[406523819,1771908641976,-500.0,0.00013699,2]
[406523820,1771908641984,-500.0,0.00013699,2]
[406523821,1771908641993,-503.17329319,0.00013699,2]
[406523822,1771908642002,-500.0,0.00013699,2]
[406523823,1771908642011,-150.0,0.000137,2]
[406523824,1771908642020,-215.42973367,0.000137,2]
[406523825,1771908642029,-150.0,0.000137,2]
[406523826,1771908642038,-166.66,0.00013707,2]
[406523827,1771908642047,-1600.0,0.00013741,2]
[406523828,1771908642055,-2358.81,0.00013754,2]
[406523829,1771908642065,-18405.12121762,0.00013806,2]
[406523830,1771908642074,-291.24,0.00013825,2]
[406523831,1771908642083,-500.0,0.00013934,2]